bitfinex/quotes_ETHUSD_20251118
["timestamp","ask_amount","ask_price","bid_price","bid_amount"]
[1763475115659,1.348,3043.7,3042.9,0.1854]
[1763475115860,0.4592,3043.6,3042.9,0.001]
[1763475116065,6.5968781,3043.4,3042.9,0.001]
[1763475116286,1.18799264,3043.3,3042.9,0.001]
[1763475116457,1.64719264,3043.3,3042.9,0.001]
[1763475117565,1.18799264,3043.3,3042.9,0.001]
[1763475117866,0.90699264,3043.8,3043.2,0.6819]
[1763475118030,1.348,3043.7,3043.3,0.4975]
[1763475118638,1.348,3043.7,3042.9,0.001]
[1763475118832,0.4592,3043.6,3042.9,0.001]
[1763475119357,1.348,3043.7,3042.9,0.001]
[1763475119358,1.348,3043.7,3043.0,0.461]
[1763475120077,1.8072,3043.7,3042.9,0.001]
[1763475120238,0.90699264,3043.3,3042.9,0.001]
[1763475120784,1.348,3043.2,3042.9,0.001]
[1763475120950,1.8072,3043.2,3042.9,0.001]
[1763475121467,1.348,3043.1,3042.9,0.462]
[1763475121843,6.5968781,3043.9,3043.0,0.4975]
[1763475122136,6.5968781,3043.9,3042.9,0.462]
[1763475122137,6.5988781,3044.4,3043.8,0.4975]
[1763475122442,1.348,3043.9,3043.2,0.461]
[1763475122957,0.90699264,3043.8,3043.1,0.1844]
[1763475123375,0.90699264,3043.8,3043.1,1.51674447]
[1763475123664,0.90699264,3043.8,3043.7,0.4975]
[1763475123892,0.90699264,3043.8,3043.2,0.461]
[1763475124994,0.90899264,3043.8,3043.1,1.05574447]
[1763475126399,0.4953,3043.7,3043.0,0.87134447]
[1763475128295,1.347,3043.6,3043.0,0.87134447]
[1763475128493,0.90699264,3043.3,3042.9,0.87234447]
[1763475128695,0.28,3043.2,3042.9,0.001]
[1763475129570,0.3344,3043.0,3042.9,0.001]
[1763475131096,0.28,3043.2,3042.9,0.001]
[1763475131619,1.067,3043.1,3042.9,0.001]
[1763475131913,1.347,3043.1,3042.9,0.001]
[1763475132124,0.90699264,3043.3,3042.9,0.001]
[1763475132307,0.6144,3043.0,3042.9,0.001]
[1763475132818,0.6144,3043.0,3041.4,0.405504]
[1763475132819,0.1972,3042.7,3042.1,0.87134447]
[1763475133034,0.1972,3042.7,3041.5,0.001]
[1763475133035,0.90699264,3041.7,3041.5,0.001]
[1763475133304,0.90699264,3041.7,3040.3,0.1855]
[1763475133305,0.405504,3041.5,3040.3,0.1855]
[1763475133605,0.90619264,3040.7,3040.3,0.1855]
[1763475133790,0.28,3040.6,3040.3,0.1855]
[1763475133999,0.28,3040.6,3039.6,0.4872]
[1763475134303,6.5968781,3040.3,3039.6,0.65318337]
[1763475134508,0.281,3040.2,3039.1,0.67225943]
[1763475134672,0.281,3040.2,3039.3,0.4872]
[1763475135289,0.405504,3041.1,3039.3,0.4872]
[1763475135290,6.5968781,3039.8,3039.3,0.4872]
[1763475135716,0.90699264,3040.2,3039.7,0.4574]
[1763475136031,0.51729002,3040.8,3039.7,0.4574]
[1763475136032,1.068,3040.1,3039.7,0.4574]
[1763475136185,1.068,3040.1,3039.8,0.4872]
[1763475136186,0.281,3040.0,3039.8,0.4872]
[1763475136387,0.90699264,3040.7,3039.9,0.4574]
[1763475136593,0.90699264,3040.7,3040.6,0.6429]
[1763475136821,1.068,3040.7,3040.6,0.6429]
[1763475137094,1.068,3040.7,3040.6,1.1301]
[1763475137095,1.349,3040.7,3040.6,1.1301]
[1763475138723,1.349,3040.7,3040.3,0.1855]
[1763475138943,1.349,3040.7,3040.6,0.4574]
[1763475139338,0.90699264,3041.2,3040.6,0.9446]
[1763475139545,1.349,3041.1,3040.6,0.9446]
[1763475140127,1.349,3041.0,3040.7,0.4872]
[1763475140444,1.349,3040.9,3040.7,0.4872]
[1763475140745,1.349,3040.8,3040.7,0.4872]
[1763475140924,1.349,3040.8,3040.3,0.1855]
[1763475141352,0.90699264,3040.9,3040.4,0.4679]
[1763475141534,1.349,3040.7,3040.4,0.4679]
[1763475142319,1.349,3040.7,3040.6,0.4621]
[1763475142517,0.90699264,3040.9,3040.6,0.93]
[1763475142740,0.90699264,3040.9,3040.7,0.4679]
[1763475142940,0.90699264,3041.4,3040.8,0.4621]
[1763475143139,0.90699264,3041.4,3040.9,0.4621]
[1763475143342,0.80765524,3042.6,3040.9,0.4621]
[1763475143343,0.6544,3042.2,3040.9,0.93]
[1763475143527,0.6544,3042.2,3040.3,0.1855]
[1763475143528,6.5968781,3041.8,3041.3,0.656]
[1763475143742,1.18799264,3041.7,3041.1,0.1939]
[1763475144250,1.349,3041.6,3041.2,0.4679]
[1763475145456,1.349,3041.6,3041.5,0.4621]
[1763475145929,1.349,3041.6,3041.5,0.93]
[1763475147429,0.281,3041.6,3041.5,0.93]
[1763475147627,1.349,3041.6,3041.5,0.93]
[1763475147951,1.349,3041.6,3041.1,0.6618]
[1763475148356,1.349,3041.6,3041.2,0.4679]
[1763475148648,1.349,3041.5,3041.2,0.4679]
[1763475148850,1.349,3041.5,3041.4,0.4621]
[1763475149353,1.068,3041.5,3041.4,0.93]
[1763475149563,1.068,3041.5,3041.4,1.335504]
[1763475149740,1.349,3041.5,3041.4,1.335504]
[1763475149938,1.349,3041.5,3041.4,0.93]
[1763475152056,6.5968781,3043.1,3041.5,0.405504]
[1763475152360,1.068,3043.0,3041.7,0.405504]
[1763475152664,0.281,3042.9,3041.6,0.405504]
[1763475152958,0.281,3042.9,3041.7,0.4679]
[1763475153155,0.1692,3043.5,3042.8,0.656]
[1763475153322,0.1692,3043.5,3042.9,0.4621]
[1763475153323,1.349,3043.4,3042.9,0.4621]
[1763475153760,1.349,3043.4,3042.9,0.93]
[1763475154191,1.349,3043.4,3043.0,0.4679]
[1763475154679,1.349,3043.4,3042.8,0.1939]
[1763475155492,1.349,3043.3,3042.8,0.1939]
[1763475155668,0.281,3043.2,3042.8,0.1939]
[1763475155868,0.4991,3043.7,3042.8,0.6618]
[1763475156071,1.349,3043.6,3042.8,0.6618]
[1763475156896,1.349,3043.6,3042.5,0.1801]
[1763475157071,0.90699264,3043.3,3042.5,0.1801]
[1763475157399,0.281,3043.2,3042.5,0.1801]
[1763475157605,0.2309,3042.6,3041.9,0.4934]
[1763475157762,0.281,3042.5,3041.9,0.4934]
[1763475160397,1.349,3043.4,3042.8,0.4591]
[1763475160804,0.90699264,3043.5,3042.8,0.4591]
[1763475160963,1.349,3043.3,3042.8,0.4591]
[1763475161407,1.349,3043.3,3042.8,0.9525]
[1763475161835,0.90699264,3043.5,3042.8,0.9525]
[1763475162016,1.349,3043.2,3042.8,0.9525]
[1763475162997,0.002,3043.0,3042.8,0.9525]
[1763475163197,1.349,3042.9,3042.8,0.4591]
[1763475163490,1.349,3042.9,3042.4,0.1801]
[1763475163491,1.5779,3042.9,3042.4,0.1801]
[1763475163727,1.349,3042.9,3042.4,0.6735]
[1763475163927,1.349,3042.9,3042.8,0.4591]
[1763475164534,1.349,3042.9,3042.4,0.1801]
[1763475164939,1.349,3042.9,3042.8,0.4591]
[1763475165335,1.349,3042.9,3042.8,0.9525]
[1763475166220,1.349,3042.9,3042.4,0.1801]
[1763475166429,1.349,3042.9,3042.8,0.4591]
[1763475167710,0.002,3043.0,3042.4,0.1801]
[1763475167909,1.348,3042.9,3042.4,0.1801]
[1763475168304,1.348,3042.9,3042.5,0.4934]
[1763475169097,1.348,3042.9,3042.4,0.1801]
[1763475169640,1.5237,3042.9,3042.4,0.1801]
[1763475169846,1.5237,3042.9,3042.1,0.1801]
[1763475170012,2.018,3042.9,3042.1,0.1801]
[1763475170198,2.018,3042.9,3042.1,0.6735]
[1763475172653,0.1757,3042.9,3042.1,0.6735]
[1763475172803,1.348,3042.8,3042.2,0.4934]
[1763475173137,1.348,3042.7,3042.2,0.4934]
[1763475174208,0.1757,3042.9,3042.2,0.4934]
[1763475174406,1.348,3042.8,3042.2,0.4934]
[1763475174606,0.90899264,3043.0,3042.2,0.4934]
[1763475174839,0.28,3042.7,3042.2,0.4934]
[1763475175649,0.28,3042.7,3042.6,0.4591]
[1763475176001,1.068,3042.7,3042.6,0.9525]
[1763475176230,0.002,3043.0,3042.6,0.9525]
[1763475176545,0.002,3043.0,3042.9,0.4591]
[1763475176745,1.35,3043.0,3042.9,0.4591]
[1763475176933,1.35,3043.0,3042.5,0.4934]
[1763475177109,0.002,3043.0,3042.9,0.4591]
[1763475177306,0.282,3043.0,3042.9,0.4591]
[1763475177511,1.35,3043.0,3042.9,0.9525]
[1763475178106,1.35,3043.0,3042.9,0.4591]
[1763475178726,1.35,3043.0,3042.9,0.9525]
[1763475179611,1.35,3043.0,3042.9,0.4591]
[1763475180020,1.35,3043.0,3042.9,0.9525]
[1763475180219,1.35,3043.0,3042.9,0.4591]
[1763475180725,1.4036,3043.0,3042.4,1.17263371]
[1763475180940,1.8935,3043.0,3042.3,1.17263371]
[1763475181121,1.4036,3043.0,3042.4,1.17263371]
[1763475182534,0.1757,3042.9,3042.4,1.17263371]
[1763475183269,0.4943,3042.8,3042.3,1.17263371]
[1763475183556,0.0544,3042.5,3042.1,1.17363371]
[1763475183760,0.28,3042.4,3042.1,0.29435843]
[1763475184087,0.28,3042.4,3042.1,0.1811]
[1763475185780,0.28,3042.4,3042.1,0.001]
[1763475188763,0.28,3042.4,3042.3,0.4962]
[1763475189562,0.28,3042.4,3042.1,0.001]
[1763475189563,0.7507,3042.4,3042.1,0.001]
[1763475189729,0.28,3042.4,3042.3,0.4962]
[1763475189932,1.068,3042.4,3042.3,1.66883371]
[1763475190164,1.068,3042.4,3042.3,3.12763608]
[1763475190165,1.348,3042.4,3042.3,3.12763608]
[1763475191164,0.0012,3043.0,3042.4,0.405504]
[1763475191463,0.0012,3043.0,3042.9,0.4962]
[1763475191639,1.0692,3043.0,3042.9,0.4962]
[1763475191847,1.0692,3043.0,3042.9,0.9573]
[1763475192234,1.3492,3043.0,3042.9,0.9573]
[1763475193265,1.3492,3043.0,3042.5,1.18424625]
[1763475193468,1.3492,3043.0,3042.6,0.4611]
[1763475193770,1.3492,3043.0,3042.5,1.18424625]
[1763475193933,1.3492,3043.0,3042.4,1.18424625]
[1763475195270,1.3492,3043.0,3042.3,1.18424625]
[1763475195271,0.1757,3042.9,3042.3,1.18424625]
[1763475195986,0.1757,3042.9,3042.3,1.54388593]
[1763475196681,0.48417762,3042.9,3042.3,1.54388593]
[1763475197379,0.0966,3042.4,3042.2,1.18424625]
[1763475197584,0.4516,3042.8,3042.1,0.001]
[1763475197585,1.348,3042.3,3042.1,0.001]
[1763475198158,0.0966,3042.2,3042.1,0.001]
[1763475198356,0.5447,3042.2,3042.1,0.001]
[1763475199651,2.79969264,3042.2,3042.1,0.001]
[1763475199863,1.8927,3042.2,3042.1,0.001]
[1763475200060,0.0966,3042.2,3042.1,0.001]
[1763475200260,1.4446,3042.2,3042.1,0.001]
[1763475200481,0.0966,3042.2,3042.1,0.001]
[1763475200685,7.56788597,3042.4,3042.1,0.001]
[1763475200686,7.12098597,3043.0,3042.1,1.1733]
[1763475200895,1.3762873,3042.8,3042.2,0.03287094]
[1763475201101,1.3762873,3042.8,3042.2,1.67034625]
[1763475201102,0.28,3042.7,3042.2,1.67034625]
[1763475201395,0.28,3042.7,3042.3,1.37116088]
[1763475201598,0.28,3042.7,3042.6,0.4884]
[1763475201892,1.348,3042.7,3042.6,0.4884]
[1763475202393,1.348,3042.7,3042.2,1.67034625]
[1763475202547,1.348,3042.7,3042.6,0.4884]
[1763475202746,0.0012,3043.0,3042.6,0.4884]
[1763475202997,0.0012,3043.0,3042.3,1.67034625]
[1763475202998,1.068,3042.7,3042.3,1.21711611]
[1763475203152,0.0012,3043.0,3042.9,0.4884]
[1763475203354,1.3492,3043.0,3042.9,0.4884]
[1763475203557,1.3492,3043.0,3042.9,0.9745]
[1763475204164,0.0004,3043.0,3042.9,0.9745]
[1763475204488,1.3484,3043.0,3042.9,0.9745]
[1763475204678,1.3484,3043.0,3042.9,1.19037463]
[1763475205158,1.3484,3043.0,3042.9,0.70427463]
[1763475205364,1.3484,3043.0,3042.9,1.19037463]
[1763475207393,0.0004,3043.0,3042.9,1.19037463]
[1763475207598,1.3474,3043.0,3042.9,1.19037463]
[1763475210445,0.0004,3043.0,3042.9,1.19037463]
[1763475210605,1.3474,3043.0,3042.9,1.19037463]
[1763475210766,1.3474,3043.0,3042.9,2.37462088]
[1763475210961,0.0004,3043.0,3042.9,2.78012488]
[1763475211163,1.0674,3043.0,3042.9,1.59587863]
[1763475211404,0.002,3043.3,3043.0,0.80554172]
[1763475211710,1.069,3043.7,3043.3,0.893904]
[1763475211859,1.069,3043.7,3043.6,0.893904]
[1763475212260,1.069,3043.7,3043.6,1.380004]
[1763475212575,0.002,3044.0,3043.7,0.405504]
[1763475212773,0.002,3044.0,3043.7,1.380004]
[1763475212977,0.002,3044.0,3043.9,0.893904]
[1763475213173,0.002,3044.0,3043.9,2.55865717]
[1763475213574,0.002,3044.0,3043.9,2.15315317]
[1763475213773,0.002,3044.0,3043.9,1.36679522]
[1763475214011,1.069,3044.0,3043.9,2.98380498]
[1763475214237,1.349,3044.0,3043.9,1.77229922]
[1763475214433,1.349,3044.0,3043.9,1.36679522]
[1763475214647,1.349,3044.0,3043.9,0.4884]
[1763475215602,1.349,3044.0,3043.9,0.9745]
[1763475216632,0.002,3044.0,3043.9,0.9745]
[1763475216853,1.349,3044.0,3043.9,0.9745]
[1763475217148,1.349,3044.0,3043.9,0.4884]
[1763475217806,1.349,3044.0,3043.4,0.405504]
[1763475217807,1.8981,3044.0,3043.4,1.17865317]
[1763475218142,1.349,3044.0,3043.2,1.37645317]
[1763475218347,1.349,3044.0,3043.5,0.4868]
[1763475219209,1.347,3043.9,3043.5,0.4868]
[1763475220099,0.002,3044.0,3043.8,0.4611]
[1763475220348,0.002,3044.0,3043.9,0.4611]
[1763475220508,1.349,3044.0,3043.9,0.4611]
[1763475221732,1.349,3044.0,3043.9,0.9479]
[1763475222239,0.002,3044.0,3043.9,0.9479]
[1763475222570,1.349,3044.0,3043.9,0.9479]
[1763475224973,0.002,3044.0,3043.9,0.4611]
[1763475225137,1.349,3044.0,3043.9,0.4611]
[1763475225497,1.349,3044.0,3043.9,0.9479]
[1763475226562,0.002,3044.0,3043.9,0.4611]
[1763475226731,1.349,3044.0,3043.9,0.9479]
[1763475227733,1.3482,3044.0,3043.9,0.9479]
[1763475228568,0.2812,3044.0,3043.9,0.9479]
[1763475228774,1.3482,3044.0,3043.9,0.9479]
[1763475229671,1.0682,3044.0,3043.9,0.9479]
[1763475229871,0.002,3044.4,3043.9,1.353404]
[1763475230070,0.002,3044.4,3044.0,1.353404]
[1763475230304,1.349,3044.1,3044.0,1.60660972]
[1763475230802,1.349,3044.1,3044.0,0.71430572]
[1763475231592,1.349,3044.1,3044.0,1.20110572]
[1763475231767,1.349,3044.1,3044.0,0.25320572]
[1763475231973,1.349,3044.1,3043.6,0.405504]
[1763475231974,1.4435,3044.1,3043.8,1.17865317]
[1763475232208,1.349,3044.1,3044.0,0.4611]
[1763475232391,0.002,3044.1,3044.0,0.4611]
[1763475232582,1.349,3044.1,3044.0,0.4611]
[1763475233605,0.002,3044.1,3044.0,0.4611]
[1763475233774,1.349,3044.1,3044.0,0.4611]
[1763475234484,1.349,3044.1,3043.9,1.17865317]
[1763475234803,0.002,3044.1,3043.9,1.17865317]
[1763475234983,1.347,3044.0,3043.9,1.34519849]
[1763475235182,1.069,3044.1,3044.0,1.353404]
[1763475235390,1.349,3044.1,3044.0,2.04525717]
[1763475235596,1.349,3044.1,3044.0,0.866604]
[1763475235810,1.349,3044.1,3044.0,2.04722563]
[1763475236014,1.349,3044.1,3044.0,2.49426263]
[1763475236220,1.349,3044.1,3044.0,1.800441]
[1763475236512,1.349,3044.1,3044.0,3.57024002]
[1763475237691,1.349,3044.1,3044.0,3.08344002]
[1763475238307,1.349,3044.1,3044.0,3.57024002]
[1763475238505,1.349,3044.1,3044.0,1.800441]
[1763475238828,1.349,3044.1,3044.0,1.353404]
[1763475239440,0.002,3044.4,3044.1,1.545304]
[1763475239593,1.069,3044.4,3044.3,0.866604]
[1763475239796,1.349,3044.4,3044.3,0.866604]
[1763475239999,1.349,3044.4,3044.3,1.353404]
[1763475240194,1.349,3044.4,3044.3,3.458452]
[1763475240925,0.002,3044.5,3044.4,0.405504]
[1763475241112,1.349,3044.5,3044.4,1.353404]
[1763475241518,0.1573,3045.3,3044.4,1.353404]
[1763475241716,0.1573,3045.5,3044.6,2.63951364]
[1763475241920,0.4546,3045.3,3044.6,2.952145]
[1763475242232,1.349,3044.7,3044.6,4.10788457]
[1763475242533,0.002,3044.7,3044.6,4.10788457]
[1763475242724,1.349,3044.7,3044.6,3.62108457]
[1763475243412,1.349,3044.7,3044.6,1.44267093]
[1763475243597,1.8115,3044.7,3044.6,0.66893957]
[1763475243797,1.8115,3044.7,3044.5,1.77290964]
[1763475244445,0.002,3044.7,3044.6,0.9479]
[1763475244645,1.349,3044.7,3044.6,1.353404]
[1763475244942,1.4435,3044.7,3044.6,0.67084763]
[1763475245134,1.8945,3044.7,3044.5,1.18132699]
[1763475245324,0.0045,3044.6,3044.5,1.18132699]
[1763475246625,0.4571,3044.6,3044.3,1.18132699]
[1763475246825,0.4571,3044.6,3044.0,1.18132699]
[1763475246826,0.092,3044.4,3044.0,1.18132699]
[1763475247041,0.0911,3044.1,3043.9,1.18132699]
[1763475247539,0.0911,3044.1,3044.0,1.18132699]
[1763475247949,0.0911,3044.1,3043.8,1.18132699]
[1763475247950,0.5437,3044.1,3043.8,1.18132699]
[1763475248151,0.1866,3043.9,3043.7,1.18132699]
[1763475248350,0.3703,3043.8,3043.7,1.8357877]
[1763475248556,0.3703,3043.8,3043.6,1.18132699]
[1763475248923,0.4597,3043.7,3043.5,1.18132699]
[1763475249170,0.4526,3043.7,3043.5,1.18132699]
[1763475249473,0.0964,3043.6,3043.3,1.18132699]
[1763475249619,0.4526,3043.7,3043.1,0.001]
[1763475249816,0.4526,3043.7,3043.1,1.18232699]
[1763475250058,0.4526,3043.7,3043.1,0.001]
[1763475250419,0.0964,3043.2,3043.1,0.001]
[1763475250625,0.3764,3043.2,3043.1,0.001]
[1763475251251,0.8246,3043.2,3043.1,0.001]
[1763475254766,0.3756,3043.2,3043.1,0.001]
[1763475256369,0.8246,3043.2,3043.1,0.001]
[1763475259467,1.73159264,3043.2,3043.1,0.001]
[1763475260252,0.8246,3043.2,3043.1,0.001]
[1763475263391,0.6484,3042.9,3042.7,0.001]
[1763475263698,8.67469546,3042.8,3042.1,0.001]
[1763475263998,0.0856,3042.6,3042.1,0.001]
[1763475264356,1.8902,3042.6,3042.1,0.001]
[1763475268742,1.4326,3042.6,3042.1,0.1856]
[1763475269041,1.8902,3042.6,3042.1,0.001]
[1763475269746,0.5432,3042.6,3042.1,0.001]
[1763475269933,1.4326,3042.6,3042.1,0.1856]
[1763475270304,1.1526,3042.6,3042.1,0.1856]
[1763475270504,1.347,3042.6,3042.5,0.4511]
[1763475270727,1.067,3042.6,3042.5,0.914]
[1763475270924,1.08189264,3043.2,3042.5,0.914]
[1763475273385,1.347,3042.9,3042.5,0.001]
[1763475273858,0.1749,3042.8,3042.5,0.001]
[1763475274838,0.1741,3042.8,3042.5,0.001]
[1763475275544,1.347,3042.9,3042.5,0.001]
[1763475275741,1.347,3042.9,3042.5,0.4639]
[1763475275973,0.90899264,3043.2,3042.8,0.4501]
[1763475276122,1.347,3043.1,3042.8,0.4501]
[1763475276637,1.347,3043.0,3042.8,0.4501]
[1763475277434,0.0505,3042.9,3042.5,0.001]
[1763475278046,0.0505,3042.9,3042.5,0.4891]
[1763475278562,1.347,3043.0,3042.8,0.4784]
[1763475278863,0.002,3043.2,3042.9,0.4784]
[1763475279160,0.002,3043.2,3042.5,0.4891]
[1763475279161,1.347,3043.1,3042.5,0.4891]
[1763475279345,0.002,3043.2,3043.1,0.4784]
[1763475279559,1.349,3043.2,3043.1,0.4784]
[1763475279874,1.8932,3043.2,3042.5,0.001]
[1763475280167,1.3995,3043.2,3042.6,0.4881]
[1763475281728,1.349,3043.2,3043.1,0.4784]
[1763475281930,1.349,3043.2,3043.1,0.6725]
[1763475282129,1.349,3043.2,3043.1,0.4784]
[1763475282537,1.349,3043.2,3042.5,0.4891]
[1763475282538,1.3995,3043.2,3042.5,0.4891]
[1763475282739,1.3995,3043.2,3042.6,0.1671427]
[1763475283349,1.3995,3043.2,3042.6,0.6552427]
[1763475284249,1.3995,3043.2,3042.7,0.4881]
[1763475284434,1.349,3043.2,3042.7,0.4881]
[1763475284830,0.002,3043.2,3043.1,0.6725]
[1763475285037,1.349,3043.2,3043.1,0.6725]
[1763475285238,1.349,3043.2,3043.1,0.4784]
[1763475285792,2.80019264,3043.2,3042.5,0.001]
[1763475286094,0.6429,3042.6,3042.5,0.001]
[1763475286257,0.9229,3042.6,3042.5,0.001]
[1763475286459,1.0024,3042.6,3042.5,0.001]
[1763475287054,2.0694,3042.6,3042.5,0.001]
[1763475290186,1.068,3042.6,3042.5,0.4794]
[1763475290399,1.348,3042.6,3042.5,0.4794]
[1763475290894,0.1732,3043.0,3042.5,0.4794]
[1763475291062,1.068,3042.9,3042.5,0.9675]
[1763475291262,0.002,3043.2,3042.6,0.4881]
[1763475291485,1.068,3042.8,3042.6,0.4881]
[1763475291690,0.28,3042.7,3042.6,0.4881]
[1763475291963,0.002,3042.8,3042.7,0.4784]
[1763475292192,1.07,3042.8,3042.7,0.4784]
[1763475292406,1.35,3042.8,3042.7,0.9665]
[1763475294372,1.35,3042.8,3042.7,0.4784]
[1763475294704,1.35,3042.8,3042.7,0.9665]
[1763475297608,1.35,3042.8,3042.7,3.14491364]
[1763475297609,1.069,3042.8,3042.7,3.14491364]
[1763475297907,1.069,3043.2,3042.8,0.405504]
[1763475298110,1.069,3043.2,3043.1,0.6725]
[1763475298415,1.069,3043.2,3043.1,1.85489293]
[1763475298416,1.3482,3043.2,3043.1,1.85489293]
[1763475298619,1.3482,3043.2,3043.1,2.34299293]
[1763475298777,1.3482,3043.2,3043.1,1.1606]
[1763475298977,1.3482,3043.2,3043.1,1.39489929]
[1763475299509,1.3482,3043.2,3043.1,2.05594014]
[1763475300202,0.0012,3043.2,3043.1,3.23833307]
[1763475300398,0.0012,3043.2,3043.1,2.49430536]
[1763475300399,1.0682,3043.2,3043.1,2.49430536]
[1763475300603,1.3482,3043.2,3043.1,2.46144414]
[1763475300933,0.002,3043.5,3043.2,0.65164841]
[1763475301216,0.002,3043.9,3043.6,0.405504]
[1763475301377,1.069,3044.7,3043.9,3.69074902]
[1763475301575,1.069,3044.7,3044.6,0.883904]
[1763475301799,1.069,3044.7,3044.6,1.14891673]
[1763475302101,1.349,3044.7,3044.6,1.63701673]
[1763475302411,1.349,3044.7,3044.6,2.81166377]
[1763475302715,1.349,3044.7,3044.6,1.63701673]
[1763475303476,0.002,3045.1,3044.7,0.405504]
[1763475303809,0.002,3045.1,3045.0,0.883904]
[1763475304014,0.002,3045.1,3045.0,1.372004]
[1763475304779,0.282,3045.1,3045.0,1.372004]
[1763475305216,0.282,3045.1,3045.0,0.9665]
[1763475308314,1.349,3045.1,3044.8,0.20425207]
[1763475309013,1.349,3045.1,3044.8,0.68185207]
[1763475309518,1.349,3045.1,3044.7,0.64641849]
[1763475309812,1.349,3045.1,3044.7,0.4776]
[1763475310388,0.002,3045.1,3045.0,0.4976]
[1763475310584,1.349,3045.1,3045.0,0.4976]
[1763475311315,1.349,3045.1,3045.0,0.9752]
[1763475311679,0.002,3045.1,3045.0,1.380704]
[1763475311885,0.282,3045.1,3045.0,1.380704]
[1763475312415,0.282,3045.1,3045.0,0.9752]
[1763475312631,0.282,3045.1,3045.0,1.380704]
[1763475313690,0.282,3045.1,3044.7,0.64957624]
[1763475313906,0.282,3045.1,3044.4,0.405504]
[1763475314102,0.282,3045.1,3044.4,0.4776]
[1763475314318,0.4889,3044.5,3043.8,0.4776]
[1763475314483,0.28,3044.4,3043.9,0.4776]
[1763475315016,0.002,3045.1,3044.3,0.4976]
[1763475315221,1.347,3045.0,3044.4,0.405504]
[1763475315521,1.347,3044.9,3044.5,0.4776]
[1763475315721,0.002,3045.1,3044.5,0.4776]
[1763475315922,1.347,3044.8,3044.5,0.4776]
[1763475316423,1.347,3044.8,3044.7,0.4976]
[1763475316932,0.002,3045.1,3044.8,0.405504]
[1763475317122,1.067,3044.9,3044.8,0.405504]
[1763475317508,1.067,3044.9,3044.8,0.903104]
[1763475317828,0.002,3045.1,3044.8,1.380704]
[1763475317997,0.28,3044.9,3044.8,0.405504]
[1763475318506,0.28,3044.9,3044.8,1.380704]
[1763475319294,0.002,3045.1,3044.8,1.380704]
[1763475319494,1.069,3045.1,3045.0,0.903104]
[1763475319692,0.4655,3046.8,3045.5,0.405504]
[1763475319922,0.002,3046.9,3045.1,0.1888]
[1763475319923,0.1741,3045.9,3045.1,0.1888]
[1763475320118,0.1741,3045.9,3045.2,0.4776]
[1763475320628,0.28,3045.7,3045.2,0.4776]
[1763475321622,0.7498,3045.7,3044.8,0.1927]
[1763475321803,0.7498,3045.7,3044.8,0.6676]
[1763475321804,0.469,3045.7,3044.8,0.6676]
[1763475323128,0.469,3045.7,3044.8,0.1927]
[1763475323129,0.28,3045.6,3044.8,0.1927]
[1763475323343,0.28,3045.6,3044.7,0.64795675]
[1763475323344,0.0785,3044.9,3044.7,0.64795675]
[1763475323518,0.741,3044.8,3044.1,0.4749]
[1763475323718,0.741,3044.8,3044.3,0.405504]
[1763475324131,0.28,3044.8,3044.4,0.4749]
[1763475325039,0.7498,3044.8,3044.2,0.1649547]
[1763475325220,0.7498,3044.8,3043.5,1.76622327]
[1763475325221,0.0794,3044.3,3043.6,1.17464704]
[1763475325426,0.28,3044.2,3043.6,1.64954704]
[1763475325607,0.28,3044.2,3043.7,0.1649547]
[1763475325810,0.28,3044.2,3043.2,2.01236768]
[1763475325811,0.4698,3044.1,3043.3,0.4749]
[1763475326433,0.4698,3044.1,3043.2,0.24614441]
[1763475327029,0.4698,3044.9,3044.0,0.4783]
[1763475327345,1.347,3044.8,3044.1,0.671]
[1763475327646,1.347,3044.8,3044.4,0.001]
[1763475327844,0.6371,3045.2,3044.4,0.001]
[1763475328048,1.347,3044.7,3044.4,0.001]
[1763475328233,1.347,3044.7,3044.4,0.4759]
[1763475328825,1.347,3044.7,3044.6,0.4783]
[1763475329213,1.347,3044.7,3044.6,0.9532]
[1763475329542,1.4264,3044.7,3044.4,0.001]
[1763475330319,0.0047,3044.5,3044.4,0.001]
[1763475330950,0.4745,3044.5,3044.4,0.001]
[1763475331914,1.347,3044.7,3044.4,0.001]
[1763475332216,1.8168,3044.7,3044.4,0.001]
[1763475332541,0.0794,3044.5,3044.4,0.001]
[1763475333053,0.1673,3044.9,3044.4,0.4793]
[1763475333252,1.347,3044.8,3044.4,0.4759]
[1763475333417,0.28,3044.7,3044.4,0.4759]
[1763475334054,0.28,3044.7,3044.4,0.001]
[1763475334260,0.28,3044.7,3044.4,0.4759]
[1763475334554,0.28,3044.7,3044.4,0.001]
[1763475335560,0.0794,3044.5,3044.4,0.001]
[1763475337119,0.4731,3045.2,3044.4,0.001]
[1763475337449,1.347,3045.1,3044.4,0.453]
[1763475337853,1.067,3045.0,3044.5,0.49104611]
[1763475338032,0.28,3044.9,3044.5,0.4582]
[1763475338759,0.28,3044.9,3044.3,1.17464704]
[1763475338927,0.7531,3044.9,3044.3,1.17464704]